bitfinex-derivatives/quotes_BNBF0:USTF0_20250507
["timestamp","ask_amount","ask_price","bid_price","bid_amount"]
[1746647884820,1.26739885,598.95,598.41,0.33421901]
[1746647885123,1.26739885,598.94,598.41,0.33421901]
[1746647885324,1.00000461,598.97,598.41,0.33421901]
[1746647885325,2.26740346,598.93,598.41,0.33421901]
[1746647885520,1.26739885,598.92,598.41,0.33421901]
[1746647885821,2.26740346,598.91,598.41,0.33421901]
[1746647886020,1.26739885,598.9,598.41,0.33421901]
[1746647886223,2.26740346,598.89,598.41,0.33421901]
[1746647886520,1.00000461,598.89,598.41,0.33421901]
[1746647887025,1.00000461,598.88,598.41,0.33421901]
[1746647887322,1.00000461,598.87,598.41,0.33421901]
[1746647888126,1.00000461,598.86,598.41,0.33421901]
[1746647888426,1.00000461,598.85,598.41,0.33421901]
[1746647889026,1.00000461,598.84,598.41,0.33421901]
[1746647889827,0.33358908,599.54,598.41,0.33421901]
[1746647890026,1.57246743,599.53,598.41,0.33421901]
[1746647890327,2.57162633,599.52,598.41,0.33421901]
[1746647890527,2.26487419,599.51,598.41,0.33421901]
[1746647890724,1.26571529,599.5,598.41,0.33421901]
[1746647890926,1.26571529,599.49,598.41,0.33421901]
[1746647891123,1.26571529,599.48,598.41,0.33421901]
[1746647891324,2.57144102,599.47,598.41,0.33421901]
[1746647891524,1.26552998,599.46,598.41,0.33421901]
[1746647891723,1.57228212,599.45,598.41,0.33421901]
[1746647892028,1.57228212,599.44,598.41,0.33421901]
[1746647892228,1.26552998,599.43,598.41,0.33421901]
[1746647892429,1.26552998,599.42,598.41,0.33421901]
[1746647892725,2.26468888,599.41,598.41,0.33421901]
[1746647892929,1.26552998,599.4,598.41,0.33421901]
[1746647893129,1.57228212,599.39,598.41,0.33421901]
[1746647893325,2.26468888,599.38,598.41,0.33421901]
[1746647893524,2.26468888,599.37,598.41,0.33421901]
[1746647893830,1.26552998,599.36,598.41,0.33421901]
[1746647894030,1.26552998,599.35,598.41,0.33421901]
[1746647894329,1.26552998,599.34,598.41,0.33421901]
[1746647894529,1.26552998,599.33,598.41,0.33421901]
[1746647894826,2.26468888,599.32,598.41,0.33421901]
[1746647895032,1.26492927,599.31,598.41,0.33421901]
[1746647895332,2.26408817,599.3,598.41,0.33421901]
[1746647895526,1.26492927,599.29,598.41,0.33421901]
[1746647895726,1.26492927,599.28,598.41,0.33421901]
[1746647895930,1.26492927,599.27,598.41,0.33421901]
[1746647896126,1.26492927,599.26,598.41,0.33421901]
[1746647896331,1.26492927,599.25,598.41,0.33421901]
[1746647896531,1.26492927,599.24,598.41,0.33421901]
[1746647896831,1.26492927,599.23,598.41,0.33421901]
[1746647897032,2.26408817,599.22,598.41,0.33421901]
[1746647897332,2.26408817,599.21,598.41,0.33421901]
[1746647897533,1.26492927,599.2,598.41,0.33421901]
[1746647897729,1.26492927,599.19,598.41,0.33421901]
[1746647897933,0.9991589,599.2,598.41,0.33421901]
[1746647897934,1.26492927,599.18,598.41,0.33421901]
[1746647898232,1.26492927,599.17,598.41,0.33421901]
[1746647898432,1.26492927,599.16,598.41,0.33421901]
[1746647898627,1.26492927,599.15,598.41,0.33421901]
[1746647898927,1.26492927,599.14,598.41,0.33421901]
[1746647899127,1.26492927,599.13,598.41,0.33421901]
[1746647899328,1.26492927,599.12,598.41,0.33421901]
[1746647899525,0.33358908,599.54,598.41,0.33421901]
[1746647899526,2.26408817,599.11,598.41,0.33421901]
[1746647899728,1.26492927,599.1,598.41,0.33421901]
[1746647899928,1.26492927,599.09,598.41,0.33421901]
[1746647900132,1.26492927,599.08,598.41,0.33421901]
[1746647900331,1.26492927,599.07,598.41,0.33421901]
[1746647900527,1.26492927,599.06,598.41,0.33421901]
[1746647900732,1.26492927,599.05,598.41,0.33421901]
[1746647901035,1.26492927,599.04,598.41,0.33421901]
[1746647901227,1.26376301,599.03,598.41,0.33421901]
[1746647901428,2.26292191,599.02,598.41,0.33421901]
[1746647901633,1.26376301,599.01,598.41,0.33421901]
[1746647901833,2.26258948,599.0,598.41,0.33421901]
[1746647902034,1.26343058,598.99,598.41,0.33421901]
[1746647902231,0.9991589,598.98,598.41,0.33421901]
[1746647902429,1.26341937,598.97,598.41,0.33421901]
[1746647902632,1.26341937,598.96,598.41,0.33421901]
[1746647902830,2.26257827,598.95,598.41,0.33421901]
[1746647903030,1.26341937,598.94,598.41,0.33421901]
[1746647903230,1.26341937,598.93,598.41,0.33421901]
[1746647903431,1.26341937,598.92,598.41,0.33421901]
[1746647903633,1.26341937,598.91,598.41,0.33421901]
[1746647903836,2.26257827,598.9,598.41,0.33421901]
[1746647904136,1.26341803,598.89,598.41,0.33421901]
[1746647904431,0.9991589,598.88,598.41,0.33421901]
[1746647905132,0.9991589,598.87,598.41,0.33421901]
[1746647905331,0.9991589,598.86,598.41,0.33421901]
[1746647905635,0.9991589,598.85,598.41,0.33421901]
[1746647906138,0.9991589,598.84,598.41,0.33421901]
[1746647906731,0.9991589,598.83,598.41,0.33421901]
[1746647907638,0.33358908,599.54,598.41,0.33421901]
[1746647907833,1.26310201,599.53,598.41,0.33421901]
[1746647908036,2.59298298,599.52,598.41,0.33421901]
[1746647908233,1.59670778,599.51,598.41,0.33421901]
[1746647908435,2.59299411,599.5,598.41,0.33421901]
[1746647908637,1.26310201,599.49,598.41,0.33421901]
[1746647908935,2.56617933,599.48,598.41,0.33421901]
[1746647909239,1.26310201,599.47,598.41,0.33421901]
[1746647909434,2.25938277,599.46,598.41,0.33421901]
[1746647909637,1.56956712,599.45,598.41,0.33421901]
[1746647909834,1.26277056,599.44,598.41,0.33421901]
[1746647910036,2.25905132,599.43,598.41,0.33421901]
[1746647910235,1.26277056,599.42,598.41,0.33421901]
[1746647910434,2.25905132,599.41,598.41,0.33421901]
[1746647910636,1.56956712,599.4,598.41,0.33421901]
[1746647910834,1.26277056,599.39,598.41,0.33421901]
[1746647911042,2.25905132,599.38,598.41,0.33421901]
[1746647911339,1.26277056,599.37,598.41,0.33421901]
[1746647911539,2.25905132,599.36,598.41,0.33421901]
[1746647911738,1.26277056,599.35,598.41,0.33421901]
[1746647911934,1.26277056,599.34,598.41,0.33421901]
[1746647912138,1.26277056,599.33,598.41,0.33421901]
[1746647912436,1.26277056,599.32,598.41,0.33421901]
[1746647912634,2.25905132,599.31,598.41,0.33421901]
[1746647912835,1.26277056,599.3,598.41,0.33421901]
[1746647913036,1.56956869,599.29,598.41,0.33421901]
[1746647913234,1.26277056,599.28,598.41,0.33421901]
[1746647913436,1.26277056,599.27,598.41,0.33421901]
[1746647913637,1.56956869,599.26,598.41,0.33421901]
[1746647913837,0.30679813,599.26,598.41,0.33421901]
[1746647914034,2.25917731,599.25,598.41,0.33421901]
[1746647914239,1.26289655,599.24,598.41,0.33421901]
[1746647914441,1.26289655,599.23,598.41,0.33421901]
[1746647914638,1.26289655,599.22,598.41,0.33421901]
[1746647914934,1.26289655,599.21,598.41,0.33421901]
[1746647915136,1.26289655,599.2,598.41,0.33421901]
[1746647915335,1.26289655,599.19,598.41,0.33421901]
[1746647915538,1.26289655,599.18,598.41,0.33421901]
[1746647915734,0.99628076,599.19,598.41,0.33421901]
[1746647915735,1.26289655,599.17,598.41,0.33421901]
[1746647915936,0.99628076,599.19,598.41,1.24721901]
[1746647915937,1.26289655,599.16,598.41,1.24721901]
[1746647916135,2.25917731,599.15,598.41,1.24721901]
[1746647916336,1.26289655,599.14,598.41,1.24721901]
[1746647916534,1.26289655,599.13,598.41,1.24721901]
[1746647916737,2.25917731,599.12,598.41,1.24721901]
[1746647916939,1.26289655,599.11,598.41,1.24721901]
[1746647917134,1.26289655,599.1,598.41,1.24721901]
[1746647917338,2.25917731,599.09,598.41,1.24721901]
[1746647917536,1.26289655,599.08,598.41,1.24721901]
[1746647917739,1.26289655,599.07,598.41,1.24721901]
[1746647917936,2.25917731,599.06,598.41,1.24721901]
[1746647918135,1.26289655,599.05,598.41,1.24721901]
[1746647918340,1.26289655,599.04,598.41,1.24721901]
[1746647918538,1.26289655,599.03,598.41,1.24721901]
[1746647918742,1.26289655,599.02,598.41,1.24721901]
[1746647919040,2.25917731,599.01,598.41,1.24721901]
[1746647919241,1.26289655,599.0,598.41,1.24721901]
[1746647919441,2.25917731,598.99,598.41,1.24721901]
[1746647919637,1.26289655,598.98,598.41,1.24721901]
[1746647919841,1.26289655,598.97,598.41,1.24721901]
[1746647920040,1.26289655,598.96,598.41,1.24721901]
[1746647920241,1.26289655,598.95,598.41,1.24721901]
[1746647920434,1.26289655,598.94,598.41,1.24721901]
[1746647920636,2.25917731,598.93,598.41,1.24721901]
[1746647920940,1.26289655,598.92,598.41,1.24721901]
[1746647921540,0.99628076,598.91,598.41,1.24721901]
[1746647921941,0.99628076,598.9,598.41,1.24721901]
[1746647923041,0.99628076,598.89,598.41,1.24721901]
[1746647923236,0.99628076,598.88,598.41,1.24721901]
[1746647923644,0.99628076,598.87,598.41,1.24721901]
[1746647924142,0.3336169,599.49,598.41,1.24721901]
[1746647924444,1.26283965,599.48,598.41,1.24721901]
[1746647924645,1.26283965,599.47,598.41,1.24721901]
[1746647924844,1.56961673,599.46,598.41,1.24721901]
[1746647925045,1.26283965,599.45,598.41,1.24721901]
[1746647925245,1.26283965,599.44,598.41,1.24721901]
[1746647925442,1.26283965,599.43,598.41,1.24721901]
[1746647925647,2.2586473,599.42,598.41,1.24721901]
[1746647925843,1.56961673,599.41,598.41,1.24721901]
[1746647926044,1.26324407,599.4,598.41,1.24721901]
[1746647926245,1.26324407,599.39,598.41,1.24721901]
[1746647926443,1.57002115,599.38,598.41,2.07921901]
[1746647926646,2.25905172,599.37,598.41,2.07921901]
[1746647926941,2.5658288,599.36,598.41,2.07921901]
[1746647927145,1.57002115,599.35,598.41,2.07921901]
[1746647927343,1.26324407,599.34,598.41,2.07921901]
[1746647927546,2.25905172,599.33,598.41,2.07921901]
[1746647927742,1.26324407,599.32,598.41,2.07921901]
[1746647927946,1.26324407,599.31,598.41,2.07921901]
[1746647928143,1.26324407,599.3,598.41,2.07921901]
[1746647928447,1.26324407,599.29,598.41,2.07921901]
[1746647928647,1.26324407,599.28,598.41,2.07921901]
[1746647928848,2.25905172,599.27,598.41,2.07921901]
[1746647929047,1.26324407,599.26,598.41,2.07921901]
[1746647929245,1.26324407,599.25,598.41,2.07921901]
[1746647929446,1.26324407,599.24,598.41,2.07921901]
[1746647929647,1.26324407,599.23,598.41,2.07921901]
[1746647929845,1.26324407,599.22,598.41,2.07921901]
[1746647930048,0.3336169,599.49,598.41,2.07921901]
[1746647930049,1.26324407,599.21,598.41,2.07921901]
[1746647930346,1.26324407,599.2,598.41,2.07921901]
[1746647930544,1.26324407,599.19,598.41,2.07921901]
[1746647930745,1.26324407,599.18,598.41,2.07921901]
[1746647930951,1.26324407,599.17,598.41,2.07921901]
[1746647931152,1.26324407,599.16,598.41,2.07921901]
[1746647931348,1.26301126,599.15,598.41,2.07921901]
[1746647931552,0.3336169,599.49,598.41,2.07921901]
[1746647931553,1.26301126,599.14,598.41,2.07921901]
[1746647931753,1.26301126,599.13,598.41,2.07921901]
[1746647931953,1.26301126,599.12,598.41,2.07921901]
[1746647932154,1.26301126,599.11,598.41,2.07921901]
[1746647932354,1.26301126,599.1,598.41,2.07921901]
[1746647932654,1.26301126,599.09,598.41,2.07921901]
[1746647932853,1.26301126,599.08,598.41,2.07921901]
[1746647933055,1.26301126,599.07,598.41,2.07921901]
[1746647933354,1.26338458,599.06,598.41,2.07921901]
[1746647933552,1.26338458,599.05,598.41,2.07921901]
[1746647933853,1.26338458,599.04,598.41,2.07921901]
[1746647934054,1.26338458,599.03,598.41,2.07921901]
[1746647934248,1.26338458,599.02,598.41,2.07921901]
[1746647934552,1.26338458,599.01,598.41,2.07921901]
[1746647934752,0.3336169,599.49,598.41,2.07921901]
[1746647934753,1.26338458,599.0,598.41,2.07921901]
[1746647934949,1.26338458,598.99,598.41,2.07921901]
[1746647935153,1.26353088,598.98,598.41,2.07921901]
[1746647935453,1.26353088,598.97,598.41,2.07921901]
[1746647935653,1.26353088,598.96,598.41,2.07921901]
[1746647935954,1.26353088,598.95,598.41,2.07921901]
[1746647936154,1.26353088,598.94,598.41,2.07921901]
[1746647936347,1.26353088,598.93,598.41,2.07921901]
[1746647936549,1.26353088,598.92,598.41,2.07921901]
[1746647936750,1.26353088,598.91,598.41,2.07921901]
[1746647936950,1.26353088,598.9,598.41,2.07921901]
[1746647937250,0.3336169,599.49,598.41,2.07921901]
[1746647937450,1.26406456,599.48,598.41,2.07921901]
[1746647937655,1.26406456,599.47,598.41,2.07921901]
[1746647937855,1.26406456,599.46,598.41,2.07921901]
[1746647938055,1.26406456,599.45,598.41,2.07921901]
[1746647938255,1.26406456,599.44,598.41,2.07921901]
[1746647938451,1.26406456,599.43,598.41,2.07921901]
[1746647938658,1.26406456,599.42,598.41,2.07921901]
[1746647938857,1.26406456,599.41,598.41,2.07921901]
[1746647939059,1.26406456,599.4,598.41,2.07921901]
[1746647939254,1.26406456,599.39,598.41,2.07921901]
[1746647939457,1.26406456,599.38,598.41,2.07921901]
[1746647939655,1.26406456,599.37,598.41,3.27121901]
[1746647939854,1.26406456,599.36,598.41,3.27121901]
[1746647940054,1.26406456,599.35,598.41,3.27121901]
[1746647940258,1.26406456,599.34,598.41,3.27121901]
[1746647940456,1.26406456,599.33,598.41,3.27121901]
[1746647940754,1.26406456,599.32,598.41,3.27121901]
[1746647940956,1.26406456,599.31,598.41,3.27121901]
[1746647941156,1.26406456,599.3,598.41,3.27121901]
[1746647941357,1.26406456,599.29,598.41,3.27121901]
[1746647941555,1.26406456,599.28,598.41,3.27121901]
[1746647941758,1.26406456,599.27,598.41,3.27121901]
[1746647941958,1.26406456,599.26,598.41,3.27121901]
[1746647942159,1.26406456,599.25,598.41,3.27121901]
[1746647942359,1.26406456,599.24,598.41,3.27121901]
[1746647942559,1.26406456,599.23,598.41,4.44721901]
[1746647942759,1.26406456,599.22,598.41,4.44721901]
[1746647942957,1.26406456,599.21,598.41,4.44721901]
[1746647943160,1.26406456,599.2,598.41,4.44721901]
[1746647943460,1.26406456,599.19,598.41,4.44721901]
[1746647943660,1.26497593,599.18,598.41,4.44721901]
[1746647943861,1.26497593,599.17,598.41,4.44721901]
[1746647944158,1.26497593,599.16,598.41,4.44721901]
[1746647944357,1.26497593,599.15,598.41,4.44721901]
[1746647944561,1.26497593,599.14,598.41,4.44721901]
[1746647944861,0.3336169,599.49,598.41,4.44721901]
[1746647945062,1.26490481,599.48,598.41,4.44721901]
[1746647945261,1.26490481,599.47,598.41,4.44721901]
[1746647945461,1.26490481,599.46,598.41,4.44721901]
[1746647945761,1.26490481,599.45,598.41,4.44721901]
[1746647945956,1.26490481,599.44,598.41,4.44721901]
[1746647946161,1.26490481,599.43,598.41,4.44721901]
[1746647946362,1.26490481,599.42,598.41,4.44721901]
[1746647946566,1.26490481,599.41,598.41,4.44721901]
[1746647946856,1.26490481,599.4,598.41,4.44721901]
[1746647947155,1.26490481,599.39,598.41,4.44721901]
[1746647947358,1.26490481,599.38,598.41,4.44721901]
[1746647947561,1.26490481,599.37,598.41,4.44721901]
[1746647947761,1.26490481,599.36,598.41,4.44721901]
[1746647948062,1.26490481,599.35,598.41,4.44721901]
[1746647948357,1.26490481,599.34,598.41,4.44721901]
[1746647948562,1.26490481,599.33,598.41,4.44721901]
[1746647948862,1.26490481,599.32,598.41,4.44721901]
[1746647949063,1.26490481,599.31,598.41,4.44721901]
[1746647949262,1.26490481,599.3,598.41,4.44721901]
[1746647949562,1.26490481,599.29,598.41,4.44721901]
[1746647949758,1.26490481,599.28,598.41,4.44721901]
[1746647949962,1.26490481,599.27,598.41,4.44721901]
[1746647950162,1.26490481,599.26,598.41,4.44721901]
[1746647950356,1.26490481,599.25,598.41,4.44721901]
[1746647950560,1.26490481,599.24,598.41,4.44721901]
[1746647950762,1.26490481,599.23,598.41,4.44721901]
[1746647950960,1.26490481,599.22,598.41,4.44721901]
[1746647951163,1.26490481,599.21,598.41,4.44721901]
[1746647951363,1.26490481,599.2,598.41,4.44721901]
[1746647951560,1.26490481,599.19,598.41,4.44721901]
[1746647951863,0.3336169,599.49,598.41,4.44721901]
[1746647951864,1.26490481,599.18,598.41,4.44721901]
[1746647952064,1.26490481,599.17,598.41,4.44721901]
[1746647952365,1.26490481,599.16,598.41,4.44721901]
[1746647952659,1.26490481,599.15,598.41,4.44721901]
[1746647952864,1.26490481,599.14,598.41,4.44721901]
[1746647953064,1.26490481,599.13,598.41,4.44721901]
[1746647953263,1.26490481,599.12,598.41,4.44721901]
[1746647953460,1.26490481,599.11,598.41,4.44721901]
[1746647953660,1.26490481,599.1,598.41,4.44721901]
[1746647953864,1.26490481,599.09,598.41,4.44721901]
[1746647954065,1.26490481,599.08,598.41,4.44721901]
[1746647954265,1.26490481,599.07,598.41,4.44721901]
[1746647954465,1.26490481,599.06,598.41,4.44721901]
[1746647954663,1.26490481,599.05,598.41,4.44721901]
[1746647954966,1.26231544,599.04,598.41,4.44721901]
[1746647955266,1.26231544,599.03,598.41,4.44721901]
[1746647955566,1.26231544,599.02,598.41,4.44721901]
[1746647955762,1.26231544,599.01,598.41,4.44721901]
[1746647955967,1.26231544,599.0,598.41,4.44721901]
[1746647956266,0.3336169,599.49,598.41,4.44721901]
[1746647956267,1.26231544,598.99,598.41,4.44721901]
[1746647956467,1.26231544,598.98,598.41,4.44721901]
[1746647956665,1.26231544,598.97,598.41,4.44721901]
[1746647956869,1.26504398,598.96,598.41,4.44721901]
[1746647957068,1.26504398,598.95,598.41,2.70221901]
[1746647957269,0.3336169,599.49,598.41,2.70221901]
[1746647957470,1.26501447,599.48,598.41,2.70221901]
[1746647957670,1.26501447,599.47,598.41,2.70221901]
[1746647957871,1.26501447,599.46,598.41,2.70221901]
[1746647958066,1.26501447,599.45,598.41,2.70221901]
[1746647958370,1.26501447,599.44,598.41,2.70221901]
[1746647958572,1.26501447,599.43,598.41,2.70221901]
[1746647958771,1.26493365,599.42,598.41,2.70221901]
[1746647959070,0.3336169,599.49,598.41,2.70221901]
[1746647959071,1.26493365,599.41,598.41,2.70221901]
[1746647959271,1.26493365,599.4,598.41,2.70221901]
[1746647959468,1.26493365,599.39,598.41,2.70221901]
[1746647959675,1.26493365,599.38,598.41,2.70221901]
[1746647959875,1.26493365,599.37,598.41,2.70221901]
[1746647960074,1.26493365,599.36,598.41,2.70221901]
[1746647960275,1.26493365,599.35,598.41,2.70221901]
[1746647960574,1.26493365,599.34,598.41,2.70221901]
[1746647960872,1.26493365,599.33,598.41,2.70221901]
[1746647961074,1.26493365,599.32,598.41,4.91721901]
[1746647961370,1.26493365,599.31,598.41,4.91721901]
[1746647961570,1.26493365,599.3,598.41,4.91721901]
[1746647961774,1.26493365,599.29,598.41,4.91721901]
[1746647961972,1.26493365,599.28,598.41,4.91721901]
[1746647962277,1.26493365,599.27,598.41,4.91721901]
[1746647962576,1.26493365,599.26,598.41,4.91721901]
[1746647962776,1.26493365,599.25,598.41,4.91721901]
[1746647962975,1.26493365,599.24,598.41,4.91721901]
[1746647963172,1.26493365,599.23,598.41,4.91721901]
[1746647963471,1.26493365,599.22,598.41,4.91721901]
[1746647963676,1.26493365,599.21,598.41,4.91721901]
[1746647963972,1.26493365,599.2,598.41,4.91721901]
[1746647964175,1.26493365,599.19,598.41,4.91721901]
[1746647964373,1.26401701,599.18,598.41,4.91721901]
[1746647964577,1.26401701,599.17,598.41,4.91721901]
[1746647964773,1.26401701,599.16,598.41,4.91721901]
[1746647964975,1.26401701,599.15,598.41,4.91721901]
[1746647965172,1.26401701,599.14,598.41,4.91721901]
[1746647965374,1.26401701,599.13,598.41,4.91721901]
[1746647965574,1.26401701,599.12,598.41,4.91721901]
[1746647965775,1.26401701,599.11,598.41,4.91721901]
[1746647965970,1.26401701,599.1,598.41,4.91721901]
[1746647966273,1.26401701,599.09,598.41,4.91721901]
[1746647966474,1.26401701,599.08,598.41,4.91721901]
[1746647966674,1.26401701,599.07,598.41,4.91721901]
[1746647966876,1.26401701,599.06,598.41,4.91721901]
[1746647967076,1.26401701,599.05,598.41,4.91721901]
[1746647967277,1.26401701,599.04,598.41,4.91721901]
[1746647967478,1.26401701,599.03,598.41,4.91721901]
[1746647967672,1.26401701,599.02,598.41,4.91721901]
[1746647967877,1.26401701,599.01,598.41,4.91721901]
[1746647968073,0.29061392,599.23,598.41,4.91721901]
[1746647968277,1.26404328,599.22,598.41,4.91721901]
[1746647968475,1.26404328,599.21,598.41,4.91721901]
[1746647968676,1.26404328,599.2,598.41,4.91721901]
[1746647968875,1.26404328,599.19,598.41,4.91721901]
[1746647969175,1.26404328,599.18,598.41,4.91721901]
[1746647969371,1.26404328,599.17,598.41,4.91721901]
[1746647969677,1.26404328,599.16,598.41,4.91721901]
[1746647969873,1.26404328,599.15,598.41,4.91721901]
[1746647970077,1.26404328,599.14,598.41,4.91721901]
[1746647970277,1.26404328,599.13,598.41,4.91721901]
[1746647970574,1.26404328,599.12,598.41,4.91721901]
[1746647970777,1.26404328,599.11,598.41,4.91721901]
[1746647971078,1.26404328,599.1,598.41,4.91721901]
[1746647971278,0.3336169,599.49,598.41,4.91721901]
[1746647971279,1.26404328,599.09,598.41,4.91721901]
[1746647971577,1.26404328,599.08,598.41,4.91721901]
[1746647971773,1.26452476,599.07,598.41,4.91721901]
[1746647971977,1.26452476,599.06,598.41,4.91721901]
[1746647972181,1.26452476,599.05,598.41,4.91721901]
[1746647972379,1.26452476,599.04,598.41,4.91721901]
[1746647972677,1.26452476,599.03,598.41,4.91721901]
[1746647972877,1.26452476,599.02,598.41,4.91721901]
[1746647973175,0.29060907,599.25,598.41,4.91721901]
[1746647973377,1.26480052,599.24,598.41,4.91721901]
[1746647973582,1.26458235,599.23,598.41,4.91721901]
[1746647973879,1.26458235,599.22,598.41,4.91721901]
[1746647974078,1.26458235,599.21,598.41,4.91721901]
[1746647974274,1.26458235,599.2,598.41,4.91721901]
[1746647974480,1.26458235,599.19,598.41,4.91721901]
[1746647974678,1.26458235,599.18,598.41,4.91721901]
[1746647974879,1.26458235,599.17,598.41,4.91721901]
[1746647975182,1.26458235,599.16,598.41,4.91721901]
[1746647975476,1.26458235,599.15,598.41,4.91721901]
[1746647975680,1.26458235,599.14,598.41,4.91721901]
[1746647975979,1.26458235,599.13,598.41,4.91721901]
[1746647976175,1.26458235,599.12,598.41,4.91721901]
[1746647976379,1.26458235,599.11,598.41,4.91721901]
[1746647976580,1.26458235,599.1,598.41,4.91721901]
[1746647976779,1.26458235,599.09,598.41,4.91721901]
[1746647976975,1.26458235,599.08,598.41,4.91721901]
[1746647977279,1.26458235,599.07,598.41,4.91721901]
[1746647977480,1.26458235,599.06,598.41,4.91721901]
[1746647977779,1.26458235,599.05,598.41,4.91721901]
[1746647977981,1.26458235,599.04,598.41,4.91721901]
[1746647978179,0.29060543,599.28,598.41,4.91721901]
[1746647978180,1.26458235,599.03,598.41,4.91721901]
[1746647978381,1.26458235,599.02,598.41,4.91721901]
[1746647978679,1.26458235,599.01,598.41,4.91721901]
[1746647978880,0.29060543,599.28,598.41,4.91721901]
[1746647979075,1.26587046,599.27,598.41,4.91721901]
[1746647979280,1.26587046,599.26,598.41,4.91721901]
[1746647979485,1.26587046,599.25,598.41,4.91721901]
[1746647979780,1.26587046,599.24,598.41,4.91721901]
[1746647979976,1.26587046,599.23,598.41,4.91721901]
[1746647980280,1.26587046,599.22,598.41,4.91721901]
[1746647980482,1.26587046,599.21,598.41,4.91721901]
[1746647980681,1.26587046,599.2,598.41,4.91721901]
[1746647980980,1.26587046,599.19,598.41,4.91721901]
[1746647981275,1.26587046,599.18,598.41,4.91721901]
[1746647981483,1.26587046,599.17,598.41,4.91721901]
[1746647981781,1.26587046,599.16,598.41,4.91721901]
[1746647981977,1.26587046,599.15,598.41,4.91721901]
[1746647982181,1.26587046,599.14,598.41,4.91721901]
[1746647982382,1.26587046,599.13,598.41,4.91721901]
[1746647982582,1.26587046,599.12,598.41,4.91721901]
[1746647982882,1.26587046,599.11,598.41,4.91721901]
[1746647983082,1.26587046,599.1,598.41,4.91721901]
[1746647983283,1.26587046,599.09,598.41,4.91721901]
[1746647983483,1.26587046,599.08,598.41,4.91721901]
[1746647983680,1.26587046,599.07,598.41,4.91721901]
[1746647983877,1.26587046,599.06,598.41,4.91721901]
[1746647984081,1.26587046,599.05,598.41,4.91721901]
[1746647984283,1.26587046,599.04,598.41,4.91721901]
[1746647984479,1.26587046,599.03,598.41,4.91721901]
[1746647984683,1.26587046,599.02,598.41,4.91721901]
[1746647984985,1.26587046,599.01,598.41,4.91721901]
[1746647985282,1.26587046,599.0,598.41,4.91721901]
[1746647985579,0.290603,599.28,598.41,4.91721901]
[1746647985892,1.26714081,599.27,598.41,4.91721901]
[1746647986185,1.26714081,599.26,598.41,4.91721901]
[1746647986383,1.26714081,599.25,598.41,4.91721901]
[1746647986585,0.29058238,599.28,598.41,4.91721901]
[1746647986780,1.26724308,599.27,598.41,4.91721901]
[1746647986984,1.26724308,599.26,598.41,4.91721901]
[1746647987183,1.26724308,599.25,598.41,4.91721901]
[1746647987480,1.26724308,599.24,598.41,4.91721901]
[1746647987785,1.26724308,599.23,598.41,4.91721901]
[1746647987985,1.26724308,599.22,598.41,4.91721901]
[1746647988186,1.26724308,599.21,598.41,4.91721901]
[1746647988387,1.26724308,599.2,598.41,4.91721901]
[1746647988684,1.26724308,599.19,598.41,4.91721901]
[1746647988885,1.26724308,599.18,598.41,4.91721901]
[1746647989084,1.26724308,599.17,598.41,4.91721901]
[1746647989386,1.26724308,599.16,598.41,4.91721901]
[1746647989587,1.26724308,599.15,598.41,4.91721901]
[1746647989786,1.26724308,599.14,598.41,4.91721901]
[1746647989987,1.26724308,599.13,598.41,4.91721901]
[1746647990185,1.26724308,599.12,598.41,4.91721901]
[1746647990486,1.26724308,599.11,598.41,4.91721901]
[1746647990681,1.26724308,599.1,598.41,4.91721901]
[1746647990885,1.26724308,599.09,598.41,4.91721901]
[1746647991086,1.26724308,599.08,598.41,4.91721901]
[1746647991286,1.26724308,599.07,598.41,4.91721901]
[1746647991487,1.26724308,599.06,598.41,4.91721901]
[1746647991687,1.26724308,599.05,598.41,4.91721901]
[1746647991887,1.26724308,599.04,598.41,4.91721901]
[1746647992083,1.26724308,599.03,598.41,4.91721901]
[1746647992388,1.26644772,599.02,598.41,4.91721901]
[1746647992585,1.26644772,599.01,598.41,4.91721901]
[1746647992784,1.26644772,599.0,598.41,4.91721901]
[1746647992988,1.26644772,598.99,598.41,4.91721901]
[1746647993190,0.29061028,599.28,598.41,4.91721901]
[1746647993389,1.26681166,599.27,598.41,4.91721901]
[1746647993588,1.26681166,599.26,598.41,4.91721901]
[1746647993790,1.26681166,599.25,598.41,4.91721901]
[1746647994090,0.29061028,599.28,598.41,4.91721901]
[1746647994091,1.26763448,599.24,598.41,4.91721901]
[1746647994290,1.26763448,599.23,598.41,4.91721901]
[1746647994489,1.26763448,599.22,598.41,4.91721901]
[1746647994689,1.26763448,599.21,598.41,4.91721901]
[1746647994890,1.26763448,599.2,598.41,4.91721901]
[1746647995089,1.26763448,599.19,598.41,4.91721901]
[1746647995291,1.26763448,599.18,598.41,4.91721901]
[1746647995491,1.26763448,599.17,598.41,4.91721901]
[1746647995790,1.26763448,599.16,598.41,4.91721901]
[1746647995984,1.26763448,599.15,598.41,4.91721901]
[1746647996189,1.26763448,599.14,598.41,4.91721901]
[1746647996389,1.26763448,599.13,598.41,4.91721901]
[1746647996586,1.26763448,599.12,598.41,4.91721901]
[1746647996885,1.26763448,599.11,598.41,4.91721901]
[1746647997086,1.26763448,599.1,598.41,4.91721901]
[1746647997289,1.26763448,599.09,598.41,4.91721901]
[1746647997487,1.26763448,599.08,598.41,4.91721901]
[1746647997687,1.26763448,599.07,598.41,4.91721901]